fUSD/lending_fUSD_20250124
["ID","MTS","AMOUNT","RATE_DAILY","PERIOD"]
[350210856,1737694236986,-500.0,0.00019172,2]
[350210857,1737694236995,-500.0,0.00019172,2]
[350210858,1737694237004,-500.0,0.00019172,2]
[350210859,1737694237013,-527.75,0.00019172,2]
[350210860,1737694237023,-500.0,0.00019172,2]
[350210861,1737694237032,-500.0,0.00019172,2]
[350210862,1737694237041,-1320.18,0.00019172,2]
[350210863,1737694237051,-500.0,0.00019172,2]
[350210864,1737694237060,-500.0,0.00019172,2]
[350210865,1737694237069,-2054.14,0.00019172,2]
[350210866,1737694237079,-500.0,0.00019172,2]
[350210867,1737694237088,-500.0,0.00019172,2]
[350210868,1737694237097,-500.0,0.00019172,2]
[350210869,1737694237106,-500.0,0.00019172,2]
[350210870,1737694237116,-500.0,0.00019172,2]
[350210871,1737694237125,-586.99,0.00019172,2]
[350210872,1737694237134,-500.0,0.00019172,2]
[350210873,1737694237144,-500.0,0.00019172,2]
[350210874,1737694237153,-500.0,0.00019172,2]
[350210875,1737694237162,-500.0,0.00019172,2]
[350210876,1737694237172,-500.0,0.00019172,2]
[350210877,1737694237181,-500.0,0.00019172,2]
[350210878,1737694237191,-500.0,0.00019172,2]
[350210879,1737694237200,-500.0,0.00019172,2]
[350210880,1737694237210,-500.0,0.00019172,2]
[350210881,1737694237220,-500.0,0.00019172,2]
[350210882,1737694237233,-1000.0,0.00019172,2]
[350210883,1737694237242,-500.0,0.00019172,2]
[350210884,1737694237252,-500.0,0.00019172,2]
[350210885,1737694237261,-500.0,0.00019172,2]
[350210886,1737694237272,-500.0,0.00019172,2]
[350210887,1737694237281,-500.0,0.00019172,2]
[350210888,1737694237291,-500.0,0.00019172,2]
[350210889,1737694237301,-500.0,0.00019172,2]
[350210890,1737694237310,-500.0,0.00019172,2]
[350210891,1737694237319,-500.0,0.00019172,2]
[350210892,1737694237328,-587.6,0.00019172,2]
[350210893,1737694237338,-500.0,0.00019172,2]
[350210894,1737694237347,-500.0,0.00019172,2]
[350210896,1737694237355,-500.0,0.00019172,2]
[350210897,1737694237364,-500.0,0.00019172,2]
[350210898,1737694237373,-500.0,0.00019172,2]
[350210899,1737694237382,-500.0,0.00019172,2]
[350210900,1737694237391,-500.0,0.00019172,2]
[350210901,1737694237400,-500.0,0.00019172,2]
[350210902,1737694237409,-500.0,0.00019172,2]
[350210903,1737694237417,-500.0,0.00019172,2]
[350210904,1737694237426,-500.0,0.00019172,2]
[350210905,1737694237435,-392.13356817,0.00019172,2]
[350210906,1737694237447,-500.0,0.00019172,2]
[350210907,1737694237456,-500.0,0.00019172,2]
[350210908,1737694237464,-500.0,0.00019172,2]
[350210909,1737694237473,-500.0,0.00019172,2]
[350210910,1737694237482,-361.77153543,0.00019173,2]
[350210911,1737694237492,-151.64756094,0.00019173,2]
[350210912,1737694237501,-500.0,0.00019173,2]
[350210913,1737694237510,-500.0,0.00019173,2]
[350210914,1737694237519,-500.0,0.00019173,2]
[350210915,1737694237528,-525.38662667,0.00019173,2]
[350210916,1737694237537,-500.0,0.00019173,2]
[350210917,1737694237546,-559.81296122,0.00019173,2]
[350210918,1737694237556,-500.0,0.00019173,2]
[350210919,1737694237565,-500.0,0.00019173,2]
[350210920,1737694237574,-451.12553893,0.00019173,2]
[350210921,1737694237583,-500.0,0.00019173,2]
[350210922,1737694237592,-500.0,0.00019173,2]
[350210923,1737694237601,-500.0,0.00019173,2]
[350210924,1737694237610,-500.0,0.00019173,2]
[350210925,1737694237620,-500.0,0.00019173,2]
[350210926,1737694237629,-500.0,0.00019173,2]
[350210927,1737694237638,-500.0,0.00019173,2]
[350210928,1737694237647,-500.0,0.00019173,2]
[350210929,1737694237658,-500.0,0.00019173,2]
[350210930,1737694237667,-500.0,0.00019173,2]
[350210931,1737694237676,-500.0,0.00019173,2]
[350210932,1737694237684,-500.0,0.00019173,2]
[350210933,1737694237697,-622.17591162,0.00019173,2]
[350210934,1737694237706,-500.0,0.00019173,2]
[350210935,1737694237715,-500.0,0.00019173,2]
[350210936,1737694237725,-500.0,0.00019173,2]
[350210937,1737694237734,-500.0,0.00019173,2]
[350210938,1737694237744,-500.0,0.00019173,2]
[350210939,1737694237754,-500.0,0.00019173,2]
[350210940,1737694237763,-500.0,0.00019173,2]
[350210941,1737694237772,-500.0,0.00019173,2]
[350210942,1737694237782,-500.0,0.00019173,2]
[350210943,1737694237791,-159.61979552,0.00019173,2]
[350210944,1737694237800,-500.0,0.00019173,2]
[350210945,1737694237809,-500.0,0.00019173,2]
[350210946,1737694237818,-500.0,0.00019173,2]
[350210947,1737694237827,-500.0,0.00019173,2]
[350210948,1737694237836,-561.69,0.00019173,2]
[350210949,1737694237845,-500.0,0.00019173,2]
[350210950,1737694237855,-500.0,0.00019173,2]
[350210951,1737694237864,-500.0,0.00019173,2]
[350210952,1737694237873,-500.0,0.00019173,2]
[350210953,1737694237883,-500.0,0.00019173,2]
[350210954,1737694237893,-500.0,0.00019173,2]
[350210955,1737694237903,-500.0,0.00019173,2]
[350210956,1737694237913,-500.0,0.00019173,2]
[350210957,1737694237922,-500.0,0.00019173,2]
[350210958,1737694237932,-500.0,0.00019173,2]
[350210959,1737694237945,-500.0,0.00019173,2]
[350210960,1737694237955,-500.0,0.00019173,2]
[350210961,1737694237965,-604.34,0.00019173,2]
[350210962,1737694237975,-500.0,0.00019173,2]
[350210963,1737694237985,-500.0,0.00019173,2]
[350210964,1737694237994,-500.0,0.00019173,2]
[350210965,1737694238004,-500.0,0.00019173,2]
[350210966,1737694238014,-500.0,0.00019173,2]
[350210967,1737694238023,-500.0,0.00019173,2]
[350210968,1737694238033,-500.0,0.00019173,2]
[350210969,1737694238042,-500.0,0.00019173,2]
[350210970,1737694238052,-500.0,0.00019173,2]
[350210971,1737694238061,-500.0,0.00019173,2]
[350210972,1737694238071,-500.0,0.00019173,2]
[350210973,1737694238081,-500.0,0.00019173,2]
[350210974,1737694238090,-500.0,0.00019173,2]
[350210975,1737694238099,-500.0,0.00019173,2]
[350210976,1737694238109,-500.0,0.00019173,2]
[350210977,1737694238118,-500.0,0.00019173,2]
[350210978,1737694238127,-516.18833332,0.00019173,2]
[350210979,1737694238136,-500.0,0.00019173,2]
[350210980,1737694238145,-500.0,0.00019173,2]
[350210981,1737694238155,-500.0,0.00019173,2]
[350210982,1737694238164,-500.0,0.00019173,2]
[350210983,1737694238173,-500.0,0.00019173,2]
[350210985,1737694238183,-500.0,0.00019173,2]
[350210987,1737694238195,-907.52070754,0.00019279,2]
[350210989,1737694238204,-1339.18098178,0.00019297,2]
[350210991,1737694238212,-3000.0,0.000193,2]
[350210993,1737694238221,-500.0,0.00019344,2]
[350210994,1737694238233,-700.0,0.00019375,2]
[350210995,1737694238242,-700.0,0.00019375,2]
[350210996,1737694238251,-700.0,0.00019375,2]
[350210997,1737694238259,-700.0,0.00019375,2]
[350210998,1737694238268,-700.0,0.00019375,2]
[350210999,1737694238278,-700.0,0.00019375,2]
[350211000,1737694238287,-700.0,0.00019375,2]
[350211001,1737694238296,-700.0,0.00019375,2]
[350211002,1737694238305,-700.0,0.00019375,2]
[350211003,1737694238315,-700.0,0.00019375,2]
[350211004,1737694238323,-500.0,0.00019397,2]
[350211005,1737694238332,-500.0,0.00019397,2]
[350211006,1737694238341,-500.0,0.00019397,2]
[350211007,1737694238350,-500.0,0.00019397,2]
[350211008,1737694238358,-642.73,0.00019397,2]
[350211009,1737694238367,-500.0,0.00019397,2]
[350211010,1737694238376,-500.0,0.00019397,2]
[350211011,1737694238385,-500.0,0.00019397,2]
[350211012,1737694238395,-500.0,0.00019397,2]
[350211013,1737694238405,-500.0,0.00019397,2]
[350211014,1737694238414,-500.0,0.00019397,2]
[350211015,1737694238425,-500.0,0.00019397,2]
[350211016,1737694238434,-500.0,0.00019397,2]
[350211017,1737694238445,-500.0,0.00019397,2]
[350211018,1737694238455,-500.0,0.00019397,2]
[350211019,1737694238464,-500.0,0.00019397,2]
[350211020,1737694238474,-500.0,0.00019397,2]
[350211021,1737694238483,-500.0,0.00019397,2]
[350211022,1737694238492,-500.0,0.00019397,2]
[350211023,1737694238501,-500.0,0.00019397,2]
[350211024,1737694238510,-500.0,0.00019397,2]
[350211025,1737694238519,-500.0,0.00019397,2]
[350211026,1737694238528,-500.0,0.00019397,2]
[350211027,1737694238537,-500.0,0.00019397,2]
[350211028,1737694238547,-500.0,0.00019397,2]
[350211029,1737694238556,-500.0,0.00019397,2]
[350211030,1737694238565,-500.0,0.00019397,2]
[350211031,1737694238574,-500.0,0.00019397,2]
[350211032,1737694238583,-500.0,0.00019397,2]
[350211033,1737694238592,-500.0,0.00019397,2]
[350211034,1737694238601,-907.52070754,0.000194,2]
[350211035,1737694238610,-164.29648912,0.000194,2]
[350211036,1737694238619,-281.83801227,0.000194,2]
[350211037,1737694238629,-150.41,0.00019423,2]
[350211038,1737694238638,-500.0,0.00019444,2]
[350211039,1737694238647,-500.0,0.00019444,2]
[350211040,1737694238657,-500.0,0.00019444,2]
[350211041,1737694238666,-500.0,0.00019444,2]
[350211042,1737694238675,-615.14,0.00019444,2]
[350211043,1737694238684,-500.0,0.00019444,2]
[350211044,1737694238694,-636.02,0.00019444,2]
[350211045,1737694238703,-1235.08,0.00019444,2]
[350211046,1737694238712,-1119.09,0.00019444,2]
[350211047,1737694238722,-500.0,0.00019444,2]
[350211048,1737694238731,-2175.57,0.00019444,2]
[350211049,1737694238740,-500.0,0.00019444,2]
[350211050,1737694238750,-500.0,0.00019444,2]
[350211051,1737694238759,-684.47,0.00019444,2]
[350211052,1737694238768,-500.0,0.00019444,2]
[350211053,1737694238778,-500.0,0.00019444,2]
[350211054,1737694238787,-500.0,0.00019444,2]
[350211055,1737694238796,-467.11,0.00019444,2]
[350211056,1737694238805,-500.0,0.00019444,2]
[350211057,1737694238814,-500.0,0.00019445,2]
[350211058,1737694238823,-500.0,0.00019445,2]
[350211059,1737694238832,-500.0,0.00019445,2]
[350211060,1737694238842,-500.0,0.00019445,2]
[350211061,1737694238851,-500.0,0.00019445,2]
[350211062,1737694238861,-500.0,0.00019445,2]
[350211063,1737694238870,-500.0,0.00019445,2]
[350211064,1737694238879,-500.0,0.00019445,2]
[350211065,1737694238888,-500.0,0.00019445,2]
[350211066,1737694238897,-500.0,0.00019445,2]
[350211067,1737694238906,-500.0,0.00019445,2]
[350211068,1737694238915,-500.0,0.00019445,2]
[350211069,1737694238924,-500.0,0.00019445,2]
[350211070,1737694238934,-257.29923619,0.00019445,2]
[350211071,1737694238945,-500.0,0.00019445,2]
[350211072,1737694238954,-500.0,0.00019445,2]
[350211073,1737694238963,-268.41062375,0.00019445,2]
[350211074,1737694238974,-371.352838,0.00019445,2]
[350211075,1737694238982,-500.0,0.00019445,2]
[350211076,1737694238996,-509.18855173,0.00019445,2]
[350211077,1737694239006,-500.0,0.00019445,2]
[350211078,1737694239018,-500.0,0.00019445,2]
[350211079,1737694239029,-598.07,0.00019445,2]
[350211080,1737694239038,-500.0,0.00019445,2]
[350211081,1737694239047,-681.92,0.00019445,2]
[350211082,1737694239056,-201.66266864,0.00019445,2]
[350211083,1737694239066,-306.154216,0.00019445,2]
[350211084,1737694239076,-1190.28,0.00019445,2]
[350211085,1737694239085,-500.0,0.00019445,2]
[350211086,1737694239094,-703.29,0.00019445,2]
[350211087,1737694239104,-503.32306957,0.00019445,2]
[350211088,1737694239113,-500.0,0.00019445,2]
[350211089,1737694239122,-500.0,0.00019445,2]
[350211090,1737694239131,-500.0,0.00019445,2]
[350211091,1737694239141,-500.0,0.00019445,2]
[350211092,1737694239149,-1122.39,0.00019445,2]
[350211093,1737694239159,-500.0,0.00019445,2]
[350211094,1737694239169,-500.0,0.00019445,2]
[350211095,1737694239179,-1409.58,0.00019445,2]
[350211096,1737694239188,-1360.48,0.00019445,2]
[350211097,1737694239198,-500.0,0.00019445,2]
[350211098,1737694239207,-500.0,0.00019445,2]
[350211099,1737694239217,-500.0,0.00019445,2]
[350211100,1737694239227,-646.48,0.00019445,2]
[350211101,1737694239238,-500.0,0.00019445,2]
[350211102,1737694239247,-1096.64,0.00019445,2]
[350211103,1737694239256,-611.04,0.00019445,2]
[350211104,1737694239265,-513.40968893,0.00019445,2]
[350211105,1737694239276,-500.0,0.00019445,2]
[350211106,1737694239286,-500.0,0.00019445,2]
[350211107,1737694239295,-1401.57,0.00019445,2]
[350211108,1737694239305,-500.0,0.00019445,2]
[350211110,1737694239315,-500.0,0.00019445,2]
[350211111,1737694239324,-831.08,0.00019445,2]
[350211112,1737694239333,-500.0,0.00019445,2]
[350211113,1737694239342,-500.0,0.00019445,2]
[350211114,1737694239353,-500.0,0.00019445,2]
[350211115,1737694239362,-500.0,0.00019445,2]
[350211116,1737694239372,-500.0,0.00019445,2]
[350211117,1737694239382,-500.0,0.00019445,2]
[350211118,1737694239392,-850.5,0.00019445,2]
[350211119,1737694239401,-945.22,0.00019445,2]
[350211122,1737694239545,-500.0,0.00019445,2]
[350211123,1737694239555,-666.81,0.00019445,2]
[350211124,1737694239565,-586.24,0.00019445,2]
[350211125,1737694239575,-500.0,0.00019445,2]
[350211126,1737694239585,-500.0,0.00019445,2]
[350211127,1737694239594,-500.0,0.00019445,2]
[350211128,1737694239604,-285.75951361,0.00019445,2]
[350211129,1737694239613,-500.0,0.00019445,2]
[350211130,1737694239623,-500.0,0.00019445,2]
[350211131,1737694239631,-226.05,0.00019445,2]
[350211132,1737694239641,-500.0,0.00019445,2]
[350211133,1737694239651,-500.0,0.00019445,2]
[350211134,1737694239660,-544.25,0.00019445,2]
[350211135,1737694239669,-1307.37,0.00019445,2]
[350211136,1737694239679,-1132.54927668,0.00019445,2]
[350211137,1737694240009,-500.0,0.0001917,2]
[350211138,1737694240019,-1339.18098177,0.00019362,2]
[350211139,1737694240030,-500.0,0.00019444,2]
[350211140,1737694240039,-438.30072332,0.00019445,2]
[350211141,1737694240048,-500.0,0.00019445,2]
[350211142,1737694240057,-500.0,0.00019445,2]
[350211143,1737694240066,-500.0,0.00019445,2]
[350211144,1737694240075,-500.0,0.00019445,2]
[350211145,1737694240084,-500.0,0.00019445,2]
[350211146,1737694240094,-764.3,0.00019445,2]
[350211147,1737694240103,-956.32,0.00019445,2]
[350211148,1737694240113,-500.0,0.00019445,2]
[350211149,1737694240122,-500.0,0.00019445,2]
[350211151,1737694240131,-950.88,0.00019445,2]
[350211153,1737694240140,-500.0,0.00019445,2]
[350211155,1737694240149,-961.22,0.00019445,2]
[350211157,1737694240158,-519.26,0.00019445,2]
[350211159,1737694240167,-500.0,0.00019445,2]
[350211161,1737694240176,-500.0,0.00019445,2]
[350211163,1737694240185,-500.0,0.00019445,2]
[350211165,1737694240196,-980.1,0.00019445,2]
[350211167,1737694240205,-500.0,0.00019446,2]
[350211169,1737694240215,-500.0,0.00019446,2]
[350211171,1737694240224,-203.15,0.00019446,2]
[350211173,1737694240238,-500.0,0.00019446,2]
[350211175,1737694240247,-500.0,0.00019446,2]
[350211177,1737694240256,-500.0,0.00019446,2]
[350211179,1737694240266,-500.0,0.00019446,2]
[350211181,1737694240276,-500.0,0.00019446,2]
[350211183,1737694240285,-642.9,0.00019446,2]
[350211185,1737694240295,-500.0,0.00019446,2]
[350211187,1737694240304,-500.0,0.00019446,2]
[350211189,1737694240314,-500.0,0.00019446,2]
[350211191,1737694240324,-500.0,0.00019446,2]
[350211193,1737694240334,-500.0,0.00019446,2]
[350211195,1737694240343,-500.0,0.00019446,2]
[350211197,1737694240353,-627.49,0.00019446,2]
[350211199,1737694240362,-500.0,0.00019446,2]
[350211201,1737694240371,-616.92,0.00019446,2]
[350211203,1737694240381,-500.0,0.00019446,2]
[350211205,1737694240390,-500.0,0.00019446,2]
[350211207,1737694240399,-500.0,0.00019446,2]
[350211209,1737694240408,-1000.0,0.00019446,30]
[350211211,1737694240417,-500.0,0.00019446,2]
[350211213,1737694240426,-500.0,0.00019446,2]
[350211215,1737694240435,-151.75197984,0.00019446,2]
[350211217,1737694240445,-500.0,0.00019446,2]
[350211219,1737694240454,-500.0,0.00019446,2]
[350211221,1737694240463,-500.0,0.00019446,2]
[350211223,1737694240472,-500.0,0.00019446,2]
[350211225,1737694240481,-157.44,0.00019446,2]
[350211227,1737694240490,-500.0,0.00019446,2]
[350211229,1737694240499,-500.0,0.00019446,2]
[350211231,1737694240509,-500.0,0.00019446,2]
[350211233,1737694240518,-366.45912186,0.00019446,2]
[350211235,1737694240527,-500.0,0.00019446,2]
[350211237,1737694240536,-500.0,0.00019446,2]
[350211239,1737694240545,-500.0,0.00019446,2]
[350211241,1737694240555,-500.0,0.00019446,2]
[350211243,1737694240564,-500.0,0.00019446,2]
[350211245,1737694240573,-500.0,0.00019446,2]
[350211247,1737694240582,-500.0,0.00019446,2]
[350211249,1737694240592,-500.0,0.00019446,2]
[350211251,1737694240601,-500.0,0.00019446,2]
[350211253,1737694240610,-500.0,0.00019446,2]
[350211255,1737694240619,-500.0,0.00019446,2]
[350211256,1737694240628,-500.0,0.00019446,2]
[350211258,1737694240637,-527.75,0.00019446,2]
[350211260,1737694240646,-500.0,0.00019446,2]
[350211262,1737694240656,-500.0,0.00019446,2]
[350211264,1737694240665,-1320.18,0.00019446,2]
[350211267,1737694240675,-500.0,0.00019446,2]
[350211269,1737694240685,-2054.14,0.00019446,2]
[350211271,1737694240695,-500.0,0.00019446,2]
[350211272,1737694240704,-500.0,0.00019446,2]
[350211274,1737694240713,-500.0,0.00019446,2]
[350211276,1737694240722,-500.0,0.00019446,2]
[350211278,1737694240731,-350.47,0.00019446,2]
[350211280,1737694240739,-586.99,0.00019446,2]
[350211282,1737694240749,-500.0,0.00019446,2]
[350211284,1737694240758,-500.0,0.00019446,2]
[350211286,1737694240767,-500.0,0.00019446,2]
[350211288,1737694240776,-500.0,0.00019446,2]
[350211290,1737694240785,-500.0,0.00019446,2]
[350211292,1737694240794,-500.0,0.00019446,2]
[350211294,1737694240803,-500.0,0.00019446,2]
[350211296,1737694240812,-500.0,0.00019446,2]
[350211298,1737694240822,-500.0,0.00019446,2]
[350211300,1737694240833,-500.0,0.00019446,2]
[350211302,1737694240846,-1000.0,0.00019446,2]
[350211304,1737694240856,-500.0,0.00019446,2]
[350211306,1737694240866,-500.0,0.00019446,2]
[350211308,1737694240875,-500.0,0.00019446,2]
[350211310,1737694240884,-500.0,0.00019446,2]
[350211312,1737694240893,-500.0,0.00019446,2]
[350211314,1737694240902,-500.0,0.00019446,2]
[350211316,1737694240912,-500.0,0.00019446,2]
[350211318,1737694240921,-500.0,0.00019446,2]
[350211320,1737694240931,-500.0,0.00019446,2]
[350211322,1737694240940,-587.6,0.00019446,2]
[350211324,1737694240949,-500.0,0.00019446,2]
[350211326,1737694240959,-500.0,0.00019446,2]
[350211328,1737694240968,-500.0,0.00019446,2]
[350211330,1737694240977,-500.0,0.00019446,2]
[350211332,1737694240986,-500.0,0.00019446,2]
[350211334,1737694240996,-500.0,0.00019446,2]
[350211336,1737694241005,-500.0,0.00019446,2]
[350211338,1737694241014,-500.0,0.00019446,2]
[350211340,1737694241023,-500.0,0.00019446,2]
[350211342,1737694241032,-500.0,0.00019446,2]
[350211344,1737694241041,-500.0,0.00019446,2]
[350211346,1737694241050,-500.0,0.00019446,2]
[350211348,1737694241059,-500.0,0.00019446,2]
[350211350,1737694241071,-500.0,0.00019446,2]
[350211352,1737694241080,-389.24588282,0.00019447,2]
[350211354,1737694241089,-500.0,0.00019447,2]
[350211356,1737694241099,-500.0,0.00019447,2]
[350211357,1737694241108,-500.0,0.00019447,2]
[350211359,1737694241117,-500.0,0.00019447,2]
[350211361,1737694241126,-500.0,0.00019447,2]
[350211363,1737694241136,-500.0,0.00019447,2]
[350211365,1737694241145,-500.0,0.00019447,2]
[350211367,1737694241154,-500.0,0.00019447,2]
[350211369,1737694241163,-635.66,0.00019447,2]
[350211371,1737694241172,-444.17694487,0.00019447,2]
[350211373,1737694241181,-500.0,0.00019447,2]
[350211375,1737694241190,-500.0,0.00019447,2]
[350211377,1737694241201,-500.0,0.00019447,2]
[350211379,1737694241210,-500.0,0.00019447,2]
[350211381,1737694241219,-392.38133084,0.00019447,2]
[350211383,1737694241232,-500.0,0.00019447,2]
[350211385,1737694241240,-500.0,0.00019447,2]
[350211387,1737694241250,-500.0,0.00019447,2]
[350211389,1737694241258,-514.12056275,0.00019447,2]
[350211391,1737694241268,-500.0,0.00019447,2]
[350211393,1737694241277,-224.37230184,0.00019447,2]
[350211395,1737694241286,-500.0,0.00019447,2]
[350211397,1737694241295,-500.0,0.00019447,2]
[350211399,1737694241305,-500.0,0.00019447,2]
[350211401,1737694241315,-500.0,0.00019447,2]
[350211403,1737694241324,-317.8570847,0.00019447,2]
[350211405,1737694241333,-500.0,0.00019447,2]
[350211407,1737694241342,-500.0,0.00019447,2]
[350211408,1737694241351,-500.0,0.00019447,2]
[350211410,1737694241360,-500.0,0.00019447,2]
[350211413,1737694241370,-500.0,0.00019447,2]
[350211414,1737694241379,-500.0,0.00019447,2]
[350211416,1737694241388,-559.38937664,0.00019447,2]
[350211419,1737694241403,-500.45358545,0.00019473,2]
[350211421,1737694241414,-24917.40544511,0.0001949,2]
[350211423,1737694241426,-3664.41577722,0.0001949,2]
[350211425,1737694241437,-47843.78913238,0.0001949,2]
[350211427,1737694241449,-999.24,0.0001949,2]
[350211445,1737694241608,-305.71988705,0.00019427,2]
[350211448,1737694241619,-1033.46109472,0.00019427,2]
[350211450,1737694241628,-300.57555709,0.0001949,2]
[350211454,1737694241664,-1046.3,0.0001949,2]
[350211457,1737694241676,-366.61306333,0.0001949,2]
[350211493,1737694242562,-443.46993676,0.00019172,2]
[350211494,1737694242572,-785.02767324,0.0001949,2]
[350211495,1737694242670,-3664.27994622,0.0001949,2]
[350211497,1737694245568,-268.11124669,0.0001917,2]
[350211498,1737694245625,-231.88875331,0.0001917,2]
[350211499,1737694245635,-340.406768,0.0001917,2]
[350211500,1737694245644,-500.0,0.00019171,2]
[350211501,1737694245653,-485.03,0.00019444,2]
[350211502,1737694245662,-340.406768,0.00019444,2]
[350211503,1737694245671,-170.41567947,0.00019445,2]
[350211504,1737694245680,-1310699.65128191,0.0001949,2]
[350211505,1737694245790,-500.0,0.00019171,2]
[350211506,1737694245800,-20464.846,0.0001949,2]
[350211507,1737694245812,-410970.64702132,0.0001949,2]
[350211508,1737694246190,-500.0,0.00019445,2]
[350211509,1737694246202,-637.53200216,0.0001949,2]
[350211510,1737694246214,-840.7103829,0.0001949,2]
[350211513,1737695431747,-550.0,0.00015,2]
[350211514,1737695431757,-295.95409882,0.00015,2]
[350211515,1737695431767,-578.43,0.00016084,2]
[350211516,1737695431776,-155.41586118,0.00016274,2]
[350211517,1737695431895,-344.58413882,0.00016274,2]
[350211518,1737695431904,-600.0,0.00017,2]
[350211519,1737695431913,-169.77,0.00017798,2]
[350211520,1737695431923,-2985.64586118,0.00017865,2]
[350211522,1737695432220,-1014.35413882,0.00017865,2]
[350211524,1737695432229,-250.0,0.00017883,2]
[350211526,1737695432239,-250.0,0.00017897,2]
[350211528,1737695432248,-1000.0,0.0001793,2]
[350211529,1737695432259,-167.66,0.00017996,2]
[350211530,1737695432268,-500.0,0.00018068,2]
[350211531,1737695432278,-174.45,0.00018077,2]
[350211532,1737695432287,-249.27,0.00018108,2]
[350211533,1737695432296,-909.02,0.00018185,2]
[350211534,1737695432305,-578.43,0.00018348,2]
[350211535,1737695432315,-2500.0,0.00018401,2]
[350211536,1737695432325,-1881.0,0.000185,2]
[350211538,1737695432334,-300.0,0.00018678,2]
[350211540,1737695432344,-150.0,0.00018712,2]
[350211542,1737695432353,-437.93,0.00018712,2]
[350211544,1737695432363,-437.93,0.00018712,2]
[350211546,1737695432372,-150.0,0.00018712,2]
[350211548,1737695432381,-150.0,0.00018712,2]
[350211550,1737695432390,-437.93,0.00018712,2]
[350211552,1737695432399,-300.0,0.00018712,2]
[350211554,1737695432408,-437.93,0.00018712,2]
[350211556,1737695432417,-150.0,0.00018712,2]
[350211558,1737695432426,-150.0,0.00018712,2]
[350211559,1737695432436,-2500.0,0.000189,2]
[350211561,1737695432447,-1205.99450204,0.00018902,2]
[350211563,1737695432456,-174.54,0.00018979,2]
[350211565,1737695432466,-1297.092,0.00018986,2]
[350211568,1737695432476,-475.07167991,0.00018986,2]
[350211570,1737695432485,-181.926,0.00018986,2]
[350211571,1737695432494,-250.06,0.0001899,2]
[350211573,1737695432504,-22305.95079619,0.00019,2]
[350211585,1737695437649,-1045.0539,0.00017,2]
[350211586,1737695437662,-3503.04920381,0.00019,2]
[350211587,1737695437672,-650.0,0.00019,2]
[350211588,1737695437683,-10920.09544461,0.00019,2]
[350211589,1737695437758,-114978.73302573,0.00019,2]
[350211590,1737695437816,-1489.01949372,0.00019,2]
[350211591,1737695437828,-6609.95560402,0.00019,2]
[350211592,1737695437930,-804.1104581,0.00019,2]
[350211593,1737695437944,-467.46624105,0.00019,2]
[350211599,1737695439856,-500.0,0.00018999,2]
[350211600,1737695439866,-2976.04207273,0.00019,2]
[350211601,1737695439914,-834.49349997,0.00019,2]
[350211602,1737695439925,-1316.13084235,0.00019,2]
[350211603,1737695439937,-9096.64373114,0.00019,2]